fUSD/lending_fUSD_20250616
["ID","MTS","AMOUNT","RATE_DAILY","PERIOD"]
[366136677,1750081851042,-228.283542,0.00016602,2]
[366136678,1750081851052,-343.756474,0.00016602,2]
[366136679,1750081851062,-343.756474,0.00016602,2]
[366136680,1750081851072,-698.713597,0.00016602,2]
[366136681,1750081851082,-698.713597,0.00016602,2]
[366136682,1750081851091,-151.0,0.00016602,2]
[366136683,1750081851101,-151.0,0.00016602,2]
[366136684,1750081851111,-151.0,0.00016602,2]
[366136685,1750081851120,-221.332343,0.00016602,2]
[366136686,1750081851130,-226.647158,0.00016602,2]
[366136687,1750081851139,-221.332343,0.00016602,2]
[366136688,1750081851148,-226.647158,0.00016602,2]
[366136689,1750081851157,-151.0,0.00016602,2]
[366136690,1750081851166,-151.0,0.00016602,2]
[366136691,1750081851176,-151.0,0.00016602,2]
[366136692,1750081851186,-151.0,0.00016602,2]
[366136693,1750081851200,-151.0,0.00016602,2]
[366136694,1750081851209,-151.0,0.00016602,2]
[366136695,1750081851219,-490.0,0.00016602,2]
[366136696,1750081851228,-151.0,0.00016602,2]
[366136697,1750081851237,-151.0,0.00016602,2]
[366136698,1750081851247,-490.0,0.00016602,2]
[366136699,1750081851256,-490.0,0.00016602,2]
[366136700,1750081851266,-151.0,0.00016602,2]
[366136701,1750081851275,-151.0,0.00016602,2]
[366136702,1750081851285,-490.0,0.00016602,2]
[366136703,1750081851294,-151.0,0.00016602,2]
[366136704,1750081851304,-151.0,0.00016602,2]
[366136705,1750081851314,-151.0,0.00016602,2]
[366136706,1750081851324,-151.0,0.00016602,2]
[366136707,1750081851334,-151.0,0.00016602,2]
[366136708,1750081851344,-490.0,0.00016602,2]
[366136709,1750081851354,-490.0,0.00016602,2]
[366136710,1750081851364,-490.0,0.00016602,2]
[366136711,1750081851375,-490.0,0.00016602,2]
[366136712,1750081851384,-151.0,0.00016602,2]
[366136713,1750081851394,-490.0,0.00016602,2]
[366136714,1750081851403,-151.0,0.00016602,2]
[366136715,1750081851412,-151.0,0.00016602,2]
[366136716,1750081851422,-151.0,0.00016602,2]
[366136717,1750081851435,-490.0,0.00016602,2]
[366136718,1750081851448,-490.0,0.00016602,2]
[366136719,1750081851458,-490.0,0.00016602,2]
[366136720,1750081851467,-151.371348,0.00016602,2]
[366136721,1750081851476,-490.0,0.00016602,2]
[366136722,1750081851486,-490.0,0.00016602,2]
[366136723,1750081851495,-179.305335,0.00016602,2]
[366136724,1750081851505,-179.305335,0.00016602,2]
[366136725,1750081851516,-490.0,0.00016602,2]
[366136726,1750081851526,-490.0,0.00016602,2]
[366136727,1750081851535,-490.0,0.00016602,2]
[366136728,1750081851544,-490.0,0.00016602,2]
[366136729,1750081851553,-490.0,0.00016602,2]
[366136730,1750081851562,-490.0,0.00016602,2]
[366136731,1750081851571,-151.416514,0.00016602,2]
[366136732,1750081851580,-490.0,0.00016602,2]
[366136733,1750081851590,-490.0,0.00016602,2]
[366136734,1750081851599,-490.0,0.00016602,2]
[366136735,1750081851609,-490.0,0.00016602,2]
[366136736,1750081851619,-490.0,0.00016602,2]
[366136737,1750081851628,-151.0,0.00016602,2]
[366136738,1750081851637,-490.0,0.00016602,2]
[366136739,1750081851647,-1558.162356,0.00016602,2]
[366136740,1750081851656,-1558.162356,0.00016602,2]
[366136741,1750081851666,-739.65,0.00016602,2]
[366136742,1750081851675,-1558.162356,0.00016602,2]
[366136743,1750081851684,-1558.162356,0.00016602,2]
[366136744,1750081851697,-1558.162356,0.00016602,2]
[366136745,1750081851706,-1558.162356,0.00016602,2]
[366136746,1750081851715,-490.0,0.00016602,2]
[366136747,1750081851725,-904.603132,0.00016602,2]
[366136748,1750081851734,-904.603132,0.00016602,2]
[366136749,1750081851743,-490.0,0.00016602,2]
[366136750,1750081851752,-151.0,0.00016602,2]
[366136751,1750081851762,-151.0,0.00016602,2]
[366136752,1750081851771,-151.0,0.00016602,2]
[366136753,1750081851780,-490.0,0.00016602,2]
[366136754,1750081851790,-151.0,0.00016602,2]
[366136755,1750081851799,-151.0,0.00016602,2]
[366136756,1750081851809,-490.0,0.00016602,2]
[366136757,1750081851818,-490.0,0.00016602,2]
[366136758,1750081851828,-490.0,0.00016602,2]
[366136759,1750081851838,-490.0,0.00016602,2]
[366136760,1750081851847,-490.0,0.00016602,2]
[366136761,1750081851856,-736.36,0.00016602,2]
[366136762,1750081851866,-490.0,0.00016602,2]
[366136763,1750081851875,-490.0,0.00016602,2]
[366136764,1750081851884,-490.0,0.00016602,2]
[366136765,1750081851894,-588.0,0.00016602,2]
[366136766,1750081851903,-151.0,0.00016602,2]
[366136767,1750081851912,-151.0,0.00016602,2]
[366136768,1750081851922,-151.0,0.00016602,2]
[366136769,1750081851932,-322.923326,0.00016602,2]
[366136770,1750081851942,-1031.93,0.00016602,2]
[366136771,1750081851952,-151.0,0.00016602,2]
[366136772,1750081851961,-322.923326,0.00016602,2]
[366136773,1750081851971,-161.550075,0.00016602,2]
[366136774,1750081851980,-169.02903,0.00016602,2]
[366136775,1750081851989,-322.923326,0.00016602,2]
[366136776,1750081851999,-524.57563988,0.00016602,2]
[366136777,1750081852009,-151.0,0.00016602,2]
[366136778,1750081852019,-151.0,0.00016602,2]
[366136779,1750081852029,-951.6,0.00016602,2]
[366136780,1750081852039,-151.0,0.00016602,2]
[366136781,1750081852049,-490.0,0.00016602,2]
[366136782,1750081852059,-322.923326,0.00016602,2]
[366136783,1750081852068,-322.923326,0.00016602,2]
[366136784,1750081852078,-322.923326,0.00016602,2]
[366136785,1750081852087,-882.64,0.00016602,2]
[366136786,1750081852097,-490.0,0.00016602,2]
[366136787,1750081852107,-151.0,0.00016602,2]
[366136788,1750081852116,-151.0,0.00016602,2]
[366136789,1750081852126,-151.0,0.00016602,2]
[366136790,1750081852135,-151.0,0.00016602,2]
[366136791,1750081852145,-151.0,0.00016602,2]
[366136792,1750081852154,-180.919522,0.00016602,2]
[366136793,1750081852164,-562.337866,0.00016602,2]
[366136794,1750081852174,-562.337866,0.00016602,2]
[366136795,1750081852184,-1041.0,0.00016602,2]
[366136796,1750081852195,-648.09,0.00016602,2]
[366136797,1750081852204,-151.0,0.00016602,2]
[366136798,1750081852214,-151.0,0.00016602,2]
[366136799,1750081852223,-490.0,0.00016602,2]
[366136800,1750081852233,-490.0,0.00016602,2]
[366136801,1750081852243,-562.337866,0.00016602,2]
[366136802,1750081852252,-562.337866,0.00016602,2]
[366136803,1750081852261,-151.0,0.00016602,2]
[366136804,1750081852271,-151.527042,0.00016602,2]
[366136805,1750081852281,-1058.78,0.00016602,2]
[366136806,1750081852291,-565.8,0.00016602,2]
[366136807,1750081852300,-490.0,0.00016602,2]
[366136808,1750081852310,-490.0,0.00016602,2]
[366136809,1750081852320,-617.57,0.00016602,2]
[366136810,1750081852330,-490.0,0.00016602,2]
[366136811,1750081852340,-490.0,0.00016602,2]
[366136812,1750081852350,-526.08,0.00016602,2]
[366136813,1750081852360,-490.0,0.00016602,2]
[366136814,1750081852371,-490.0,0.00016602,2]
[366136815,1750081852380,-490.0,0.00016602,2]
[366136816,1750081852389,-490.0,0.00016602,2]
[366136817,1750081852398,-869.27,0.00016602,2]
[366136818,1750081852407,-763.9,0.00016602,2]
[366136819,1750081852417,-490.0,0.00016602,2]
[366136820,1750081852429,-608.94,0.00016602,2]
[366136821,1750081852439,-515.6,0.00016602,2]
[366136822,1750081852449,-490.0,0.00016602,2]
[366136823,1750081852458,-151.0,0.00016602,2]
[366136824,1750081852468,-151.0,0.00016602,2]
[366136825,1750081852479,-548.57,0.00016602,2]
[366136826,1750081852489,-151.0,0.00016602,2]
[366136827,1750081852498,-539.57068153,0.00016602,2]
[366136828,1750081852510,-283.84,0.00016602,2]
[366136829,1750081852520,-490.0,0.00016602,2]
[366136830,1750081852531,-275.40586294,0.00016602,2]
[366136831,1750081852540,-490.0,0.00016602,2]
[366136832,1750081852550,-1482.01,0.00016602,2]
[366136833,1750081852560,-884.96,0.00016602,2]
[366136834,1750081852569,-866.41,0.00016602,2]
[366136835,1750081852579,-964.77,0.00016602,2]
[366136836,1750081852589,-500.36,0.00016602,2]
[366136837,1750081852598,-490.0,0.00016602,2]
[366136838,1750081852608,-893.4,0.00016602,2]
[366136839,1750081852618,-878.89,0.00016602,2]
[366136840,1750081852628,-490.0,0.00016602,2]
[366136841,1750081852638,-533.04,0.00016602,2]
[366136842,1750081852648,-490.0,0.00016602,2]
[366136843,1750081852658,-1499.49,0.00016602,2]
[366136844,1750081852668,-490.0,0.00016602,2]
[366136845,1750081852677,-490.0,0.00016602,2]
[366136846,1750081852687,-490.0,0.00016602,2]
[366136847,1750081852698,-946.82,0.00016602,2]
[366136848,1750081852707,-490.0,0.00016602,2]
[366136849,1750081852717,-556.69,0.00016602,2]
[366136850,1750081852727,-490.0,0.00016602,2]
[366136851,1750081852737,-490.0,0.00016602,2]
[366136852,1750081852747,-490.0,0.00016602,2]
[366136853,1750081852756,-193.242144,0.00016602,2]
[366136854,1750081852766,-193.242144,0.00016602,2]
[366136855,1750081852775,-490.0,0.00016602,2]
[366136856,1750081852785,-193.242144,0.00016602,2]
[366136857,1750081852796,-490.0,0.00016602,2]
[366136858,1750081852806,-490.0,0.00016602,2]
[366136859,1750081852815,-193.242144,0.00016602,2]
[366136860,1750081852825,-490.0,0.00016602,2]
[366136861,1750081852834,-193.242144,0.00016602,2]
[366136862,1750081852843,-193.242144,0.00016602,2]
[366136863,1750081852852,-490.0,0.00016602,2]
[366136864,1750081852862,-619.83,0.00016602,2]
[366136865,1750081852871,-810.32,0.00016602,2]
[366136866,1750081852881,-490.0,0.00016602,2]
[366136867,1750081852891,-490.0,0.00016602,2]
[366136868,1750081852900,-850.44,0.00016602,2]
[366136869,1750081852910,-490.0,0.00016602,2]
[366136870,1750081852919,-490.0,0.00016602,2]
[366136871,1750081852929,-769.54,0.00016602,2]
[366136872,1750081852939,-490.0,0.00016602,2]
[366136873,1750081852949,-490.0,0.00016602,2]
[366136874,1750081852959,-490.0,0.00016602,2]
[366136875,1750081852969,-490.0,0.00016602,2]
[366136876,1750081852979,-1136.78,0.00016602,2]
[366136877,1750081852988,-1103.85,0.00016602,2]
[366136878,1750081852998,-490.0,0.00016602,2]
[366136879,1750081853008,-151.0,0.00016602,2]
[366136880,1750081853017,-708.62,0.00016602,2]
[366136881,1750081853027,-151.0,0.00016602,2]
[366136882,1750081853036,-151.0,0.00016602,2]
[366136883,1750081853046,-490.0,0.00016602,2]
[366136884,1750081853056,-490.0,0.00016602,2]
[366136885,1750081853066,-490.0,0.00016602,2]
[366136886,1750081853075,-1502.19,0.00016602,2]
[366136887,1750081853084,-698.53,0.00016602,2]
[366136888,1750081853094,-349.537994,0.00016602,2]
[366136889,1750081853104,-904.34,0.00016602,2]
[366136890,1750081853113,-490.0,0.00016602,2]
[366136891,1750081853123,-490.0,0.00016602,2]
[366136892,1750081853133,-490.0,0.00016602,2]
[366136893,1750081853143,-151.0,0.00016602,2]
[366136894,1750081853153,-151.0,0.00016602,2]
[366136895,1750081853163,-490.0,0.00016602,2]
[366136896,1750081853172,-490.0,0.00016602,2]
[366136897,1750081853182,-490.0,0.00016602,2]
[366136898,1750081853193,-490.0,0.00016602,2]
[366136899,1750081853203,-490.0,0.00016602,2]
[366136900,1750081853212,-490.0,0.00016602,2]
[366136901,1750081853222,-1274.9,0.00016602,2]
[366136902,1750081853231,-490.0,0.00016602,2]
[366136903,1750081853240,-835.57,0.00016602,2]
[366136904,1750081853251,-519.27,0.00016602,2]
[366136905,1750081853259,-1337.62,0.00016602,2]
[366136906,1750081853269,-404.769387,0.00016602,2]
[366136907,1750081853278,-404.769387,0.00016602,2]
[366136908,1750081853287,-293.112158,0.00016602,2]
[366136909,1750081853296,-404.769387,0.00016602,2]
[366136910,1750081853305,-572.14,0.00016602,2]
[366136911,1750081853315,-490.0,0.00016602,2]
[366136912,1750081853323,-404.769387,0.00016602,2]
[366136913,1750081853333,-151.0,0.00016602,2]
[366136914,1750081853342,-527.1,0.00016602,2]
[366136915,1750081853351,-530.89,0.00016602,2]
[366136916,1750081853360,-490.0,0.00016602,2]
[366136917,1750081853370,-490.0,0.00016602,2]
[366136918,1750081853379,-151.0,0.00016602,2]
[366136919,1750081853389,-250.572244,0.00016602,2]
[366136920,1750081853399,-900.37,0.00016602,2]
[366136921,1750081853408,-490.0,0.00016602,2]
[366136922,1750081853417,-490.0,0.00016602,2]
[366136923,1750081853430,-490.0,0.00016602,2]
[366136924,1750081853439,-490.0,0.00016602,2]
[366136925,1750081853451,-471.563809,0.00016602,2]
[366136926,1750081853461,-471.563809,0.00016602,2]
[366136927,1750081853472,-490.0,0.00016602,2]
[366136928,1750081853482,-471.563809,0.00016602,2]
[366136929,1750081853492,-490.0,0.00016602,2]
[366136930,1750081853503,-747.78,0.00016602,2]
[366136931,1750081853515,-1110.49,0.00016602,2]
[366136932,1750081853525,-752.1,0.00016602,2]
[366136933,1750081853535,-490.0,0.00016602,2]
[366136934,1750081853545,-490.0,0.00016602,2]
[366136935,1750081853554,-471.563809,0.00016602,2]
[366136936,1750081853564,-471.563809,0.00016602,2]
[366136937,1750081853574,-471.563809,0.00016602,2]
[366136938,1750081853583,-1357.54,0.00016602,2]
[366136939,1750081853593,-490.0,0.00016602,2]
[366136940,1750081853603,-490.0,0.00016602,2]
[366136941,1750081853614,-490.0,0.00016602,2]
[366136942,1750081853624,-764.78,0.00016602,2]
[366136943,1750081853633,-300.0,0.00016602,2]
[366136944,1750081853644,-490.0,0.00016602,2]
[366136945,1750081853653,-490.0,0.00016602,2]
[366136946,1750081853663,-286.66771,0.00016602,2]
[366136947,1750081853674,-490.0,0.00016602,2]
[366136948,1750081853683,-1090.82,0.00016602,2]
[366136949,1750081853694,-708.57,0.00016602,2]
[366136950,1750081853703,-1141.26,0.00016602,2]
[366136951,1750081853714,-934.93,0.00016602,2]
[366136952,1750081853724,-490.0,0.00016602,2]
[366136953,1750081853733,-490.0,0.00016602,2]
[366136954,1750081853743,-541.32,0.00016602,2]
[366136955,1750081853753,-490.0,0.00016602,2]
[366136956,1750081853763,-490.0,0.00016602,2]
[366136957,1750081853773,-1078.5,0.00016602,2]
[366136958,1750081853783,-1034.09,0.00016602,2]
[366136959,1750081853793,-560.64,0.00016602,2]
[366136960,1750081853802,-490.0,0.00016602,2]
[366136961,1750081853812,-151.0,0.00016602,2]
[366136962,1750081853822,-490.0,0.00016602,2]
[366136963,1750081853832,-151.0,0.00016602,2]
[366136964,1750081853842,-151.0,0.00016602,2]
[366136965,1750081853853,-151.0,0.00016602,2]
[366136966,1750081853863,-835.49,0.00016602,2]
[366136967,1750081853873,-1828.37,0.00016602,2]
[366136968,1750081853882,-656.01,0.00016602,2]
[366136969,1750081853892,-490.0,0.00016602,2]
[366136970,1750081853901,-490.0,0.00016602,2]
[366136971,1750081853911,-490.0,0.00016602,2]
[366136972,1750081853921,-846.62,0.00016602,2]
[366136973,1750081853930,-490.0,0.00016602,2]
[366136974,1750081853940,-490.0,0.00016602,2]
[366136975,1750081853952,-151.0,0.00016602,2]
[366136976,1750081853961,-1325.38,0.00016602,2]
[366136977,1750081853971,-151.0,0.00016602,2]
[366136978,1750081853982,-490.0,0.00016602,2]
[366136979,1750081853992,-151.0,0.00016602,2]
[366136980,1750081854002,-490.0,0.00016602,2]
[366136981,1750081854012,-151.0,0.00016602,2]
[366136982,1750081854021,-151.0,0.00016602,2]
[366136983,1750081854031,-490.0,0.00016602,2]
[366136984,1750081854041,-490.0,0.00016602,2]
[366136985,1750081854051,-443.397042,0.00016602,2]
[366136986,1750081854060,-443.397042,0.00016602,2]
[366136987,1750081854069,-466.817949,0.00016602,2]
[366136988,1750081854079,-466.817949,0.00016602,2]
[366136989,1750081854089,-490.0,0.00016602,2]
[366136990,1750081854098,-466.817949,0.00016602,2]
[366136991,1750081854108,-923.52,0.00016602,2]
[366136992,1750081854118,-443.397042,0.00016602,2]
[366136993,1750081854128,-490.0,0.00016602,2]
[366136994,1750081854138,-466.817949,0.00016602,2]
[366136995,1750081854148,-443.397042,0.00016602,2]
[366136996,1750081854158,-466.817949,0.00016602,2]
[366136997,1750081854169,-490.0,0.00016602,2]
[366136998,1750081854179,-490.0,0.00016602,2]
[366136999,1750081854190,-466.817949,0.00016602,2]
[366137000,1750081854200,-490.0,0.00016602,2]
[366137001,1750081854377,-490.0,0.00016602,2]
[366137002,1750081854388,-490.0,0.00016602,2]
[366137003,1750081854398,-490.0,0.00016602,2]
[366137004,1750081854408,-490.0,0.00016602,2]
[366137005,1750081854418,-2152.23,0.00016602,2]
[366137006,1750081854433,-490.0,0.00016602,2]
[366137007,1750081854443,-490.0,0.00016602,2]
[366137008,1750081854453,-490.0,0.00016602,2]
[366137009,1750081854463,-490.0,0.00016602,2]
[366137010,1750081854474,-984.32,0.00016602,2]
[366137011,1750081854484,-1049.0,0.00016602,2]
[366137012,1750081854495,-490.0,0.00016602,2]
[366137013,1750081854506,-292.624328,0.00016602,2]
[366137014,1750081854517,-292.624328,0.00016602,2]
[366137015,1750081854527,-490.0,0.00016602,2]
[366137016,1750081854537,-516.68,0.00016602,2]
[366137017,1750081854547,-151.0,0.00016602,2]
[366137018,1750081854557,-490.0,0.00016602,2]
[366137019,1750081854567,-151.0,0.00016602,2]
[366137020,1750081854577,-292.624328,0.00016602,2]
[366137021,1750081854587,-490.0,0.00016602,2]
[366137022,1750081854597,-292.624328,0.00016602,2]
[366137023,1750081854607,-1645.72,0.00016602,2]
[366137024,1750081854617,-867.49,0.00016602,2]
[366137025,1750081854627,-490.0,0.00016602,2]
[366137026,1750081854636,-1084.96,0.00016602,2]
[366137027,1750081854646,-532.56,0.00016602,2]
[366137028,1750081854656,-490.0,0.00016602,2]
[366137029,1750081854666,-606.37,0.00016602,2]
[366137030,1750081854676,-490.0,0.00016602,2]
[366137031,1750081854685,-582.66,0.00016602,2]
[366137032,1750081854697,-490.0,0.00016602,2]
[366137033,1750081854707,-1254.27,0.00016602,2]
[366137034,1750081854717,-697.03,0.00016602,2]
[366137035,1750081854727,-490.0,0.00016602,2]
[366137036,1750081854737,-572.57,0.00016602,2]
[366137037,1750081854747,-151.0,0.00016602,2]
[366137038,1750081854757,-490.0,0.00016602,2]
[366137039,1750081854766,-1602.98,0.00016602,2]
[366137040,1750081854776,-1039.66,0.00016602,2]
[366137041,1750081854786,-696.41,0.00016602,2]
[366137042,1750081854796,-490.0,0.00016602,2]
[366137043,1750081854806,-490.0,0.00016602,2]
[366137044,1750081854815,-490.0,0.00016602,2]
[366137045,1750081854825,-490.0,0.00016602,2]
[366137046,1750081854835,-1029.67,0.00016602,2]
[366137047,1750081854845,-490.0,0.00016602,2]
[366137048,1750081854854,-490.0,0.00016602,2]
[366137049,1750081854864,-490.0,0.00016602,2]
[366137050,1750081854874,-991.62,0.00016602,2]
[366137051,1750081854884,-1335.71,0.00016602,2]
[366137052,1750081854894,-679.7,0.00016602,2]
[366137053,1750081854904,-151.0,0.00016602,2]
[366137054,1750081854914,-151.0,0.00016602,2]
[366137055,1750081854924,-151.0,0.00016602,2]
[366137056,1750081854934,-152.487399,0.00016602,2]
[366137057,1750081854945,-490.0,0.00016602,2]
[366137058,1750081854954,-490.0,0.00016602,2]
[366137059,1750081854964,-616.62,0.00016602,2]
[366137060,1750081854974,-490.0,0.00016602,2]
[366137061,1750081854984,-490.0,0.00016602,2]
[366137062,1750081854994,-490.0,0.00016602,2]
[366137063,1750081855004,-1095.01,0.00016602,2]
[366137064,1750081855014,-490.0,0.00016602,2]
[366137065,1750081855024,-532.86,0.00016602,2]
[366137066,1750081855034,-490.0,0.00016602,2]
[366137067,1750081855045,-490.0,0.00016602,2]
[366137068,1750081855055,-490.0,0.00016602,2]
[366137069,1750081855064,-1457.96,0.00016602,2]
[366137070,1750081855074,-490.0,0.00016602,2]
[366137071,1750081855085,-490.0,0.00016602,2]
[366137072,1750081855095,-1452.82,0.00016602,2]
[366137073,1750081855105,-490.0,0.00016602,2]
[366137074,1750081855116,-490.0,0.00016602,2]
[366137075,1750081855126,-490.0,0.00016602,2]
[366137076,1750081855136,-490.0,0.00016602,2]
[366137077,1750081855146,-151.0,0.00016602,2]
[366137078,1750081855155,-249.646984,0.00016602,2]
[366137079,1750081855166,-1286.67,0.00016602,2]
[366137080,1750081855176,-490.0,0.00016602,2]
[366137081,1750081855187,-250.0,0.00016602,2]
[366137082,1750081855199,-225.36714875,0.00016602,2]
[366137083,1750081855209,-490.0,0.00016602,2]
[366137084,1750081855219,-1915.09,0.00016602,2]
[366137085,1750081855229,-490.0,0.00016602,2]
[366137086,1750081855238,-524.53,0.00016602,2]
[366137087,1750081855248,-490.0,0.00016602,2]
[366137088,1750081855258,-490.0,0.00016602,2]
[366137089,1750081855269,-190.15848122,0.00016602,2]
[366137090,1750081855279,-490.0,0.00016602,2]
[366137091,1750081855288,-490.0,0.00016602,2]
[366137092,1750081855298,-490.0,0.00016602,2]
[366137093,1750081855308,-1162.62,0.00016602,2]
[366137094,1750081855318,-403.01196612,0.00016602,2]
[366137095,1750081855328,-490.0,0.00016602,2]
[366137096,1750081855338,-490.0,0.00016602,2]
[366137097,1750081855349,-490.0,0.00016602,2]
[366137098,1750081855359,-1762.93,0.00016602,2]
[366137099,1750081855369,-7245.44,0.00016602,2]
[366137100,1750081855379,-263.283404,0.00016602,2]
[366137101,1750081855388,-263.283404,0.00016602,2]
[366137102,1750081855398,-263.283404,0.00016602,2]
[366137103,1750081855409,-490.0,0.00016602,2]
[366137104,1750081855420,-490.0,0.00016602,2]
[366137105,1750081855433,-490.0,0.00016602,2]
[366137106,1750081855442,-263.283404,0.00016602,2]
[366137107,1750081855454,-726.59,0.00016602,2]
[366137108,1750081855464,-263.283404,0.00016602,2]
[366137109,1750081855474,-263.283404,0.00016602,2]
[366137110,1750081855484,-1618.89,0.00016602,2]
[366137111,1750081855494,-1223.97,0.00016602,2]
[366137112,1750081855504,-490.0,0.00016602,2]
[366137113,1750081855515,-490.0,0.00016602,2]
[366137114,1750081855525,-490.0,0.00016602,2]
[366137115,1750081855534,-909.9,0.00016602,2]
[366137116,1750081855544,-490.0,0.00016602,2]
[366137117,1750081855554,-1015.67,0.00016602,2]
[366137118,1750081855564,-490.0,0.00016602,2]
[366137119,1750081855574,-4376.22,0.00016602,2]
[366137120,1750081855583,-490.0,0.00016602,2]
[366137121,1750081855594,-1649.67,0.00016602,2]
[366137122,1750081855603,-3731.34,0.00016602,2]
[366137123,1750081855614,-823.36,0.00016602,2]
[366137124,1750081855624,-490.0,0.00016602,2]
[366137125,1750081855634,-665.19,0.00016602,2]
[366137126,1750081855644,-490.0,0.00016602,2]
[366137127,1750081855654,-154.99,0.00016602,2]
[366137128,1750081855664,-549.16,0.00016602,2]
[366137129,1750081855673,-490.0,0.00016602,2]
[366137130,1750081855683,-13227.09,0.00016602,2]
[366137131,1750081855694,-7620.97,0.00016602,2]
[366137132,1750081855703,-1051.72,0.00016602,2]
[366137133,1750081855713,-490.0,0.00016602,2]
[366137134,1750081855723,-985.9,0.00016602,2]
[366137135,1750081855733,-490.0,0.00016602,2]
[366137136,1750081855743,-490.0,0.00016602,2]
[366137137,1750081855752,-2122.29,0.00016602,2]
[366137138,1750081855762,-490.0,0.00016602,2]
[366137139,1750081855771,-817.76,0.00016602,2]
[366137140,1750081855780,-3517.78,0.00016602,2]
[366137141,1750081855790,-3407.17,0.00016602,2]
[366137142,1750081855799,-959.64,0.00016602,2]
[366137143,1750081855809,-490.0,0.00016602,2]
[366137144,1750081855819,-490.0,0.00016602,2]
[366137145,1750081855828,-490.0,0.00016602,2]
[366137146,1750081855838,-710.52,0.00016602,2]
[366137147,1750081855847,-490.0,0.00016602,2]
[366137148,1750081855856,-490.0,0.00016602,2]
[366137149,1750081855866,-899.12,0.00016602,2]
[366137150,1750081855876,-490.0,0.00016602,2]
[366137151,1750081855885,-1248.91,0.00016602,2]
[366137152,1750081855896,-1232.54,0.00016602,2]
[366137153,1750081855905,-490.0,0.00016602,2]
[366137154,1750081855915,-1322.09,0.00016602,2]
[366137155,1750081855925,-1057.73,0.00016602,2]
[366137156,1750081855935,-490.0,0.00016602,2]
[366137157,1750081855946,-151.0,0.00016602,2]
[366137158,1750081855955,-151.0,0.00016602,2]
[366137159,1750081855965,-151.0,0.00016602,2]
[366137160,1750081855975,-3008.06,0.00016602,2]
[366137161,1750081855984,-516.26,0.00016602,2]
[366137162,1750081855993,-1604.36,0.00016602,2]
[366137163,1750081856002,-490.0,0.00016602,2]
[366137164,1750081856012,-490.0,0.00016602,2]
[366137165,1750081856023,-741.09,0.00016602,2]
[366137166,1750081856032,-2973.8,0.00016602,2]
[366137167,1750081856042,-490.0,0.00016602,2]
[366137168,1750081856052,-490.0,0.00016602,2]
[366137169,1750081856062,-1171.29,0.00016602,2]
[366137170,1750081856072,-1023.71,0.00016602,2]
[366137171,1750081856081,-490.0,0.00016602,2]
[366137172,1750081856091,-784.23,0.00016602,2]
[366137173,1750081856102,-1558.85,0.00016602,2]
[366137174,1750081856111,-490.0,0.00016602,2]
[366137175,1750081856122,-5308.5,0.00016602,2]
[366137176,1750081856131,-1536.25,0.00016602,2]